[Event "Titled Tuesday Blitz November 2 2021"]
[White "Postny, Evgeny"]
[Black "Urazayev, Arystanbek"]
[WhiteFideId "2804344"]
[BlackFideId "13709810"]
[WhiteElo "2521"]
[BlackElo "2321"]
[Result "0-1"]
[Round "10"]
[TimeControl "180+1"]
[Date "2021.11.02"]
[WhiteClock "0:00:02"]
[BlackClock "0:00:15"]

1. Nf3 {[%clk 0:02:57]}  d5 {[%clk 0:03:00]} 2. d4 {[%clk 0:02:56]}  Nf6 {[%clk 0:03:01]} 3. c4 {[%clk 0:02:55]}  e6 {[%clk 0:03:01]} 4. Nc3 {[%clk 0:02:54]}  a6 {[%clk 0:03:01]} 5. cxd5 {[%clk 0:02:52]}  exd5 {[%clk 0:03:01]} 6. Bg5 {[%clk 0:02:53]}  Be6 {[%clk 0:03:02]} 7. e3 {[%clk 0:02:53]}  Nbd7 {[%clk 0:03:02]} 8. Bd3 {[%clk 0:02:50]}  c6 {[%clk 0:03:03]} 9. O-O {[%clk 0:02:49]}  Bd6 {[%clk 0:03:02]} 10. Bf4 {[%clk 0:02:49]}  Qc7 {[%clk 0:03:03]} 11. Qc1 {[%clk 0:02:48]}  O-O {[%clk 0:03:01]} 12. a3 {[%clk 0:02:47]}  Rfe8 {[%clk 0:03:01]} 13. b4 {[%clk 0:02:47]}  Bg4 {[%clk 0:02:58]} 14. Bxd6 {[%clk 0:02:44]}  Qxd6 {[%clk 0:02:58]} 15. Nd2 {[%clk 0:02:44]}  b5 {[%clk 0:02:53]} 16. h3 {[%clk 0:02:33]}  Bh5 {[%clk 0:02:50]} 17. Nb3 {[%clk 0:02:32]}  Nb6 {[%clk 0:02:51]} 18. Nc5 {[%clk 0:02:31]}  Nc4 {[%clk 0:02:51]} 19. a4 {[%clk 0:02:29]}  Bg6 {[%clk 0:02:47]} 20. Bxc4 {[%clk 0:02:08]}  bxc4 {[%clk 0:02:46]} 21. a5 {[%clk 0:01:50]}  h5 {[%clk 0:02:45]} 22. Qd2 {[%clk 0:01:41]}  h4 {[%clk 0:02:43]} 23. f3 {[%clk 0:01:38]}  Nd7 {[%clk 0:02:33]} 24. Nxd7 {[%clk 0:01:36]}  Qxd7 {[%clk 0:02:32]} 25. Na4 {[%clk 0:01:35]}  Qe7 {[%clk 0:02:27]} 26. Rfe1 {[%clk 0:01:30]}  Qg5 {[%clk 0:02:14]} 27. Nc5 {[%clk 0:01:27]}  Ra7 {[%clk 0:02:09]} 28. Ra3 {[%clk 0:01:21]}  Bf5 {[%clk 0:02:08]} 29. Kh1 {[%clk 0:01:18]}  Bc8 {[%clk 0:02:09]} 30. Qf2 {[%clk 0:01:14]}  Rae7 {[%clk 0:02:09]} 31. Rc3 {[%clk 0:01:14]}  g6 {[%clk 0:02:04]} 32. e4 {[%clk 0:01:10]}  Qf4 {[%clk 0:01:49]} 33. Rce3 {[%clk 0:01:00]}  Kg7 {[%clk 0:01:32]} 34. R3e2 {[%clk 0:00:50]}  g5 {[%clk 0:01:14]} 35. Kg1 {[%clk 0:00:49]}  f6 {[%clk 0:01:11]} 36. Qe3 {[%clk 0:00:43]}  Qg3 {[%clk 0:00:50]} 37. Qf2 {[%clk 0:00:42]}  Qd6 {[%clk 0:00:48]} 38. e5 {[%clk 0:00:35]}  fxe5 {[%clk 0:00:38]} 39. dxe5 {[%clk 0:00:35]}  Qg6 {[%clk 0:00:35]} 40. Qd4 {[%clk 0:00:31]}  Kh7 {[%clk 0:00:34]} 41. Re3 {[%clk 0:00:21]}  Qf5 {[%clk 0:00:26]} 42. Kf2 {[%clk 0:00:11]}  Qf4 {[%clk 0:00:18]} 43. Qxf4 {[%clk 0:00:10]}  gxf4 {[%clk 0:00:19]} 44. R3e2 {[%clk 0:00:10]}  Kg6 {[%clk 0:00:20]} 45. Na4 {[%clk 0:00:08]}  Kf5 {[%clk 0:00:17]} 46. Nb6 {[%clk 0:00:08]}  Be6 {[%clk 0:00:17]} 47. Rc1 {[%clk 0:00:06]}  Rg7 {[%clk 0:00:17]} 48. Ke1 {[%clk 0:00:05]}  Reg8 {[%clk 0:00:18]} 49. Kf1 {[%clk 0:00:06]}  Rg3 {[%clk 0:00:15]} 50. Rcc2 {[%clk 0:00:05]}  Kg6 {[%clk 0:00:16]} 51. Ke1 {[%clk 0:00:04]}  Bf5 {[%clk 0:00:16]} 52. Ra2 {[%clk 0:00:02]}  Bd3 {[%clk 0:00:16]} 53. Rf2 {[%clk 0:00:02]}  Kf5 {[%clk 0:00:16]} 54. Na4 {[%clk 0:00:01]}  Kxe5 {[%clk 0:00:16]} 55. Nc5 {[%clk 0:00:02]}  Kd4 {[%clk 0:00:16]} 56. Nxa6 {[%clk 0:00:02]}  Re8+ {[%clk 0:00:16]} 57. Kd1 {[%clk 0:00:02]}  c3 {[%clk 0:00:16]} 58. Nc5 {[%clk 0:00:02]}  Bc4 {[%clk 0:00:16]} 59. Rac2 {[%clk 0:00:02]}  Rg5 {[%clk 0:00:14]} 60. a6 {[%clk 0:00:02]}  Rge5 {[%clk 0:00:15]} 0-1


[Site "https://www.chess.com"]

[Event "Titled Tuesday Blitz November 2 2021"]
[White "Rasulov, Vugar"]
[Black "Andreikin, Dmitry"]
[WhiteFideId "13402390"]
[BlackFideId "4158814"]
[WhiteElo "2560"]
[BlackElo "2736"]
[Result "0-1"]
[Round "10"]
[TimeControl "180+1"]
[Date "2021.11.02"]
[WhiteClock "0:00:34"]
[BlackClock "0:00:33"]

1. e4 {[%clk 0:03:00]}  g6 {[%clk 0:03:00]} 2. d4 {[%clk 0:03:00]}  Bg7 {[%clk 0:03:01]} 3. Nf3 {[%clk 0:03:01]}  d6 {[%clk 0:03:01]} 4. Nc3 {[%clk 0:03:00]}  Nf6 {[%clk 0:03:00]} 5. h3 {[%clk 0:03:00]}  O-O {[%clk 0:03:00]} 6. Be2 {[%clk 0:03:00]}  Nc6 {[%clk 0:03:00]} 7. O-O {[%clk 0:02:59]}  e5 {[%clk 0:03:00]} 8. dxe5 {[%clk 0:02:56]}  Nxe5 {[%clk 0:02:59]} 9. Nxe5 {[%clk 0:02:56]}  dxe5 {[%clk 0:03:00]} 10. Be3 {[%clk 0:02:51]}  c6 {[%clk 0:02:56]} 11. a4 {[%clk 0:02:47]}  Qa5 {[%clk 0:02:54]} 12. Qd6 {[%clk 0:02:43]}  Rd8 {[%clk 0:02:50]} 13. Qc5 {[%clk 0:02:43]}  Qxc5 {[%clk 0:02:48]} 14. Bxc5 {[%clk 0:02:44]}  Bf8 {[%clk 0:02:47]} 15. Bxf8 {[%clk 0:02:37]}  Kxf8 {[%clk 0:02:48]} 16. a5 {[%clk 0:02:37]}  Be6 {[%clk 0:02:46]} 17. Bd3 {[%clk 0:02:35]}  b5 {[%clk 0:02:45]} 18. b4 {[%clk 0:02:23]}  a6 {[%clk 0:02:42]} 19. Rfd1 {[%clk 0:02:16]}  Rac8 {[%clk 0:02:39]} 20. Ne2 {[%clk 0:01:50]}  c5 {[%clk 0:02:37]} 21. bxc5 {[%clk 0:01:51]}  Rxc5 {[%clk 0:02:37]} 22. f3 {[%clk 0:01:47]}  Ke7 {[%clk 0:02:36]} 23. Kf2 {[%clk 0:01:47]}  Rdc8 {[%clk 0:02:31]} 24. h4 {[%clk 0:01:47]}  h5 {[%clk 0:02:28]} 25. Ng3 {[%clk 0:01:42]}  Ne8 {[%clk 0:02:27]} 26. Nf1 {[%clk 0:01:42]}  Nd6 {[%clk 0:02:26]} 27. Ne3 {[%clk 0:01:42]}  Rc3 {[%clk 0:02:23]} 28. Rd2 {[%clk 0:01:37]}  R8c5 {[%clk 0:02:20]} 29. Rad1 {[%clk 0:01:36]}  Ra3 {[%clk 0:02:15]} 30. Bf1 {[%clk 0:01:34]}  Nb7 {[%clk 0:01:54]} 31. g4 {[%clk 0:01:34]}  Rcc3 {[%clk 0:01:42]} 32. Bd3 {[%clk 0:01:27]}  Nc5 {[%clk 0:01:37]} 33. gxh5 {[%clk 0:01:27]}  gxh5 {[%clk 0:01:38]} 34. Rg1 {[%clk 0:01:21]}  Nxd3+ {[%clk 0:01:18]} 35. cxd3 {[%clk 0:01:21]}  Rxd3 {[%clk 0:01:18]} 36. Rxd3 {[%clk 0:01:16]}  Rxd3 {[%clk 0:01:19]} 37. Rg5 {[%clk 0:01:17]}  b4 {[%clk 0:01:19]} 38. Ke2 {[%clk 0:01:16]}  Ra3 {[%clk 0:01:10]} 39. Rxe5 {[%clk 0:01:13]}  b3 {[%clk 0:01:00]} 40. Nc4 {[%clk 0:00:41]}  Ra4 {[%clk 0:01:00]} 41. Nd2 {[%clk 0:00:39]}  b2 {[%clk 0:00:58]} 42. Rc5 {[%clk 0:00:40]}  Rb4 {[%clk 0:00:49]} 43. Rc7+ {[%clk 0:00:36]}  Kd8 {[%clk 0:00:34]} 44. Rc6 {[%clk 0:00:34]}  b1=Q {[%clk 0:00:33]} 45. Nxb1 {[%clk 0:00:34]}  Rxb1 {[%clk 0:00:34]} 46. Rxa6 {[%clk 0:00:34]}  Bc4+ {[%clk 0:00:33]} 0-1


[Site "https://www.chess.com"]

[Event "Titled Tuesday Blitz November 2 2021"]
[White "Sanchez Alvares, Kelvin Antonio"]
[Black "Vlassov, Nikolai"]
[WhiteFideId "3906680"]
[BlackFideId "4103360"]
[WhiteElo "2193"]
[BlackElo "2407"]
[Result "1-0"]
[Round "10"]
[TimeControl "180+1"]
[Date "2021.11.02"]
[WhiteClock "0:00:28"]
[BlackClock "0:00:03"]

1. d4 {[%clk 0:02:59]}  Nf6 {[%clk 0:02:59]} 2. c4 {[%clk 0:02:57]}  Nc6 {[%clk 0:02:59]} 3. Nf3 {[%clk 0:02:54]}  e6 {[%clk 0:02:59]} 4. Bg5 {[%clk 0:02:49]}  h6 {[%clk 0:02:58]} 5. Bxf6 {[%clk 0:02:48]}  Qxf6 {[%clk 0:02:57]} 6. Nc3 {[%clk 0:02:48]}  Bb4 {[%clk 0:02:56]} 7. Rc1 {[%clk 0:02:44]}  d6 {[%clk 0:02:52]} 8. d5 {[%clk 0:02:36]}  Bxc3+ {[%clk 0:02:47]} 9. Rxc3 {[%clk 0:02:37]}  Ne7 {[%clk 0:02:37]} 10. e4 {[%clk 0:02:35]}  O-O {[%clk 0:02:32]} 11. Be2 {[%clk 0:02:34]}  Ng6 {[%clk 0:02:31]} 12. O-O {[%clk 0:02:32]}  Nf4 {[%clk 0:02:28]} 13. Re1 {[%clk 0:02:24]}  Re8 {[%clk 0:02:25]} 14. Bf1 {[%clk 0:02:13]}  e5 {[%clk 0:02:15]} 15. c5 {[%clk 0:02:11]}  Bd7 {[%clk 0:02:11]} 16. cxd6 {[%clk 0:02:06]}  cxd6 {[%clk 0:02:10]} 17. Qb3 {[%clk 0:02:02]}  Reb8 {[%clk 0:01:35]} 18. Rec1 {[%clk 0:01:57]}  Qd8 {[%clk 0:01:24]} 19. Rc7 {[%clk 0:01:48]}  Bg4 {[%clk 0:01:14]} 20. h3 {[%clk 0:01:39]}  Bxf3 {[%clk 0:01:08]} 21. Qxf3 {[%clk 0:01:38]}  Rc8 {[%clk 0:01:09]} 22. Qc3 {[%clk 0:01:33]}  Rxc7 {[%clk 0:01:04]} 23. Qxc7 {[%clk 0:01:32]}  Qg5 {[%clk 0:00:57]} 24. Rc3 {[%clk 0:01:29]}  Qg6 {[%clk 0:00:50]} 25. Qxb7 {[%clk 0:01:25]}  Rf8 {[%clk 0:00:47]} 26. Re3 {[%clk 0:01:21]}  f5 {[%clk 0:00:41]} 27. Rg3 {[%clk 0:01:12]}  Qf6 {[%clk 0:00:39]} 28. exf5 {[%clk 0:01:10]}  Nh5 {[%clk 0:00:32]} 29. Rg6 {[%clk 0:01:08]}  Qxf5 {[%clk 0:00:32]} 30. Rxg7+ {[%clk 0:00:39]}  Nxg7 {[%clk 0:00:31]} 31. Qxa7 {[%clk 0:00:39]}  Qc2 {[%clk 0:00:25]} 32. b4 {[%clk 0:00:37]}  Nf5 {[%clk 0:00:11]} 33. Qd7 {[%clk 0:00:32]}  Nd4 {[%clk 0:00:07]} 34. Qg4+ {[%clk 0:00:31]}  Kh7 {[%clk 0:00:03]} 35. Qh4 {[%clk 0:00:28]} 1-0


[Site "https://www.chess.com"]

[Event "Titled Tuesday Blitz November 2 2021"]
[White "Skatchkov, Valery"]
[Black "Sawyer, Bradley"]
[WhiteFideId "24195812"]
[BlackFideId "2023784"]
[WhiteElo "2195"]
[BlackElo "2376"]
[Result "0-1"]
[Round "10"]
[TimeControl "180+1"]
[Date "2021.11.02"]
[WhiteClock "0:00:13"]
[BlackClock "0:00:09"]

1. d4 {[%clk 0:03:00]}  Nf6 {[%clk 0:03:00]} 2. c4 {[%clk 0:02:57]}  e6 {[%clk 0:03:00]} 3. Nc3 {[%clk 0:02:52]}  Bb4 {[%clk 0:03:01]} 4. Nf3 {[%clk 0:02:50]}  c5 {[%clk 0:03:01]} 5. e3 {[%clk 0:02:38]}  d5 {[%clk 0:03:00]} 6. cxd5 {[%clk 0:02:32]}  Nxd5 {[%clk 0:02:46]} 7. Bd2 {[%clk 0:02:31]}  cxd4 {[%clk 0:02:42]} 8. exd4 {[%clk 0:02:22]}  Nc6 {[%clk 0:02:34]} 9. Bd3 {[%clk 0:02:21]}  Be7 {[%clk 0:02:28]} 10. O-O {[%clk 0:02:19]}  O-O {[%clk 0:02:28]} 11. Qe2 {[%clk 0:02:13]}  Bf6 {[%clk 0:02:24]} 12. Qe4 {[%clk 0:02:11]}  g6 {[%clk 0:02:22]} 13. Bh6 {[%clk 0:02:10]}  Bg7 {[%clk 0:02:17]} 14. Bxg7 {[%clk 0:02:08]}  Kxg7 {[%clk 0:02:18]} 15. Rad1 {[%clk 0:01:59]}  Nf6 {[%clk 0:01:53]} 16. Qh4 {[%clk 0:01:47]}  b6 {[%clk 0:01:53]} 17. Ng5 {[%clk 0:01:24]}  Bb7 {[%clk 0:01:43]} 18. Qg3 {[%clk 0:00:39]}  Nb4 {[%clk 0:01:26]} 19. Bb1 {[%clk 0:00:37]}  Nbd5 {[%clk 0:01:19]} 20. Nce4 {[%clk 0:00:36]}  Nxe4 {[%clk 0:00:49]} 21. Bxe4 {[%clk 0:00:37]}  Rb8 {[%clk 0:00:35]} 22. h4 {[%clk 0:00:24]}  Nf6 {[%clk 0:00:29]} 23. Bxb7 {[%clk 0:00:19]}  Rxb7 {[%clk 0:00:30]} 24. Rfe1 {[%clk 0:00:16]}  Qd5 {[%clk 0:00:18]} 25. Re5 {[%clk 0:00:16]}  Qxa2 {[%clk 0:00:17]} 26. h5 {[%clk 0:00:15]}  Nxh5 {[%clk 0:00:15]} 27. Nxe6+ {[%clk 0:00:14]}  Qxe6 {[%clk 0:00:10]} 28. Rxh5 {[%clk 0:00:14]}  Qe2 {[%clk 0:00:09]} 29. Qe5+ {[%clk 0:00:13]}  Qxe5 {[%clk 0:00:09]} 30. Rxe5 {[%clk 0:00:14]}  Rd7 {[%clk 0:00:09]} 31. d5 {[%clk 0:00:13]}  Rfd8 {[%clk 0:00:10]} 32. f4 {[%clk 0:00:11]}  f6 {[%clk 0:00:09]} 33. Re3 {[%clk 0:00:11]}  Rxd5 {[%clk 0:00:06]} 34. Rxd5 {[%clk 0:00:11]}  Rxd5 {[%clk 0:00:07]} 35. Re7+ {[%clk 0:00:12]}  Kh6 {[%clk 0:00:08]} 36. Rxa7 {[%clk 0:00:13]}  Rd1+ {[%clk 0:00:08]} 37. Kh2 {[%clk 0:00:12]}  Rd2 {[%clk 0:00:08]} 38. b3 {[%clk 0:00:12]}  Rb2 {[%clk 0:00:07]} 39. Kh3 {[%clk 0:00:11]}  Rxb3+ {[%clk 0:00:06]} 40. Kh4 {[%clk 0:00:12]}  Rb4 {[%clk 0:00:06]} 41. Kg3 {[%clk 0:00:11]}  g5 {[%clk 0:00:05]} 42. f5 {[%clk 0:00:12]}  Rb5 {[%clk 0:00:04]} 43. Rc7 {[%clk 0:00:12]}  Rxf5 {[%clk 0:00:04]} 44. Rc6 {[%clk 0:00:13]}  Kg6 {[%clk 0:00:04]} 45. Rxb6 {[%clk 0:00:12]}  h5 {[%clk 0:00:05]} 46. Kh3 {[%clk 0:00:13]}  h4 {[%clk 0:00:06]} 47. Rb4 {[%clk 0:00:12]}  Rc5 {[%clk 0:00:06]} 48. Ra4 {[%clk 0:00:11]}  Rc3+ {[%clk 0:00:07]} 49. Kh2 {[%clk 0:00:11]}  Kh5 {[%clk 0:00:07]} 50. Rb4 {[%clk 0:00:11]}  f5 {[%clk 0:00:08]} 51. Ra4 {[%clk 0:00:12]}  f4 {[%clk 0:00:08]} 52. Rb4 {[%clk 0:00:13]}  Kg4 {[%clk 0:00:09]} 53. Rb3 {[%clk 0:00:13]}  Rxb3 {[%clk 0:00:09]} 0-1


[Site "https://www.chess.com"]

[Event "Titled Tuesday Blitz November 2 2021"]
[White "Svane, Frederik"]
[Black "Terry, Renato"]
[WhiteFideId "12923044"]
[BlackFideId "3803457"]
[WhiteElo "2459"]
[BlackElo "2577"]
[Result "1-0"]
[Round "10"]
[TimeControl "180+1"]
[Date "2021.11.02"]
[WhiteClock "0:00:16"]
[BlackClock "0:00:01"]

1. e4 {[%clk 0:03:00]}  e6 {[%clk 0:03:00]} 2. d4 {[%clk 0:03:01]}  d5 {[%clk 0:03:01]} 3. Nd2 {[%clk 0:03:02]}  Be7 {[%clk 0:03:01]} 4. e5 {[%clk 0:02:52]}  c5 {[%clk 0:03:01]} 5. Qg4 {[%clk 0:02:53]}  Kf8 {[%clk 0:02:59]} 6. Ngf3 {[%clk 0:02:49]}  Nc6 {[%clk 0:02:58]} 7. Nb3 {[%clk 0:02:37]}  h5 {[%clk 0:02:52]} 8. Qf4 {[%clk 0:02:36]}  c4 {[%clk 0:02:52]} 9. Nc5 {[%clk 0:02:03]}  b6 {[%clk 0:01:56]} 10. Na4 {[%clk 0:02:03]}  Nh6 {[%clk 0:01:56]} 11. Nc3 {[%clk 0:01:51]}  Nf5 {[%clk 0:01:55]} 12. Ne2 {[%clk 0:01:48]}  h4 {[%clk 0:01:49]} 13. Rg1 {[%clk 0:01:47]}  Nb4 {[%clk 0:01:33]} 14. Kd1 {[%clk 0:01:41]}  Bd7 {[%clk 0:01:30]} 15. a3 {[%clk 0:01:41]}  Nc6 {[%clk 0:01:29]} 16. g4 {[%clk 0:01:41]}  hxg3 {[%clk 0:01:29]} 17. hxg3 {[%clk 0:01:41]}  Kg8 {[%clk 0:01:19]} 18. Bd2 {[%clk 0:01:34]}  b5 {[%clk 0:01:19]} 19. Bg2 {[%clk 0:01:13]}  a5 {[%clk 0:01:19]} 20. Rh1 {[%clk 0:01:13]}  Rxh1+ {[%clk 0:01:18]} 21. Bxh1 {[%clk 0:01:13]}  b4 {[%clk 0:01:18]} 22. Bg2 {[%clk 0:01:08]}  c3 {[%clk 0:01:04]} 23. bxc3 {[%clk 0:01:08]}  bxa3 {[%clk 0:01:04]} 24. g4 {[%clk 0:01:08]}  Nh6 {[%clk 0:01:03]} 25. Ng3 {[%clk 0:01:06]}  Bf8 {[%clk 0:00:42]} 26. g5 {[%clk 0:01:01]}  Nf5 {[%clk 0:00:42]} 27. Nxf5 {[%clk 0:01:02]}  exf5 {[%clk 0:00:43]} 28. Nh4 {[%clk 0:01:03]}  Ne7 {[%clk 0:00:40]} 29. g6 {[%clk 0:01:01]}  Qe8 {[%clk 0:00:28]} 30. Bc1 {[%clk 0:00:53]}  Be6 {[%clk 0:00:19]} 31. Bxa3 {[%clk 0:00:48]}  Nxg6 {[%clk 0:00:17]} 32. Nxg6 {[%clk 0:00:48]}  fxg6 {[%clk 0:00:18]} 33. Bxf8 {[%clk 0:00:45]}  Qxf8 {[%clk 0:00:16]} 34. c4 {[%clk 0:00:45]}  Qd8 {[%clk 0:00:14]} 35. Qf3 {[%clk 0:00:42]}  Qh4 {[%clk 0:00:08]} 36. c3 {[%clk 0:00:34]}  Rd8 {[%clk 0:00:03]} 37. Rxa5 {[%clk 0:00:30]}  dxc4 {[%clk 0:00:04]} 38. d5 {[%clk 0:00:28]}  f4 {[%clk 0:00:04]} 39. Ke1 {[%clk 0:00:19]}  Bf5 {[%clk 0:00:02]} 40. d6 {[%clk 0:00:19]}  Qg5 {[%clk 0:00:02]} 41. Ra8 {[%clk 0:00:19]}  Kh7 {[%clk 0:00:01]} 42. Rxd8 {[%clk 0:00:17]}  Qxd8 {[%clk 0:00:02]} 43. Qd5 {[%clk 0:00:17]}  Qb6 {[%clk 0:00:01]} 44. Be4 {[%clk 0:00:16]} 1-0


[Site "https://www.chess.com"]

[Event "Titled Tuesday Blitz November 2 2021"]
[White "Weetik, Vjacheslav"]
[Black "Zierk, Steven"]
[WhiteFideId "4153472"]
[BlackFideId "2034255"]
[WhiteElo "2469"]
[BlackElo "2494"]
[Result "0-1"]
[Round "10"]
[TimeControl "180+1"]
[Date "2021.11.02"]
[WhiteClock "0:00:03"]
[BlackClock "0:00:04"]

1. d4 {[%clk 0:02:58]}  d5 {[%clk 0:02:59]} 2. Bf4 {[%clk 0:02:58]}  Nf6 {[%clk 0:02:59]} 3. e3 {[%clk 0:02:58]}  c5 {[%clk 0:02:59]} 4. c3 {[%clk 0:02:59]}  e6 {[%clk 0:02:59]} 5. Nd2 {[%clk 0:02:59]}  Bd6 {[%clk 0:02:59]} 6. Bxd6 {[%clk 0:02:59]}  Qxd6 {[%clk 0:03:00]} 7. Bd3 {[%clk 0:02:59]}  Nc6 {[%clk 0:02:59]} 8. f4 {[%clk 0:02:59]}  Ne7 {[%clk 0:02:55]} 9. Qe2 {[%clk 0:02:52]}  cxd4 {[%clk 0:02:50]} 10. cxd4 {[%clk 0:02:52]}  Nf5 {[%clk 0:02:50]} 11. g4 {[%clk 0:02:41]}  Ne7 {[%clk 0:02:08]} 12. Ngf3 {[%clk 0:02:13]}  Nxg4 {[%clk 0:02:05]} 13. Rg1 {[%clk 0:02:13]}  h5 {[%clk 0:01:47]} 14. h3 {[%clk 0:02:13]}  Nh6 {[%clk 0:01:47]} 15. Rxg7 {[%clk 0:02:11]}  Nhf5 {[%clk 0:01:45]} 16. Rg1 {[%clk 0:02:05]}  Bd7 {[%clk 0:01:40]} 17. O-O-O {[%clk 0:01:59]}  O-O-O {[%clk 0:01:35]} 18. Kb1 {[%clk 0:01:59]}  h4 {[%clk 0:01:24]} 19. Ne5 {[%clk 0:01:49]}  Be8 {[%clk 0:01:23]} 20. Nb3 {[%clk 0:01:49]}  Kb8 {[%clk 0:01:15]} 21. Rc1 {[%clk 0:01:40]}  f6 {[%clk 0:01:13]} 22. Ng4 {[%clk 0:01:40]}  Bh5 {[%clk 0:01:09]} 23. Nc5 {[%clk 0:01:16]}  b6 {[%clk 0:01:02]} 24. Na6+ {[%clk 0:01:15]}  Ka8 {[%clk 0:00:58]} 25. a3 {[%clk 0:00:51]}  Rc8 {[%clk 0:00:55]} 26. Nb4 {[%clk 0:00:47]}  Bg6 {[%clk 0:00:37]} 27. Ka2 {[%clk 0:00:46]}  Ng3 {[%clk 0:00:36]} 28. Qd2 {[%clk 0:00:41]}  Bxd3 {[%clk 0:00:31]} 29. Qxd3 {[%clk 0:00:41]}  Ne4 {[%clk 0:00:32]} 30. Qa6 {[%clk 0:00:34]}  Kb8 {[%clk 0:00:30]} 31. Qa4 {[%clk 0:00:24]}  a5 {[%clk 0:00:23]} 32. Nd3 {[%clk 0:00:21]}  Rc6 {[%clk 0:00:18]} 33. Qb5 {[%clk 0:00:17]}  Rhc8 {[%clk 0:00:17]} 34. Rxc6 {[%clk 0:00:15]}  Qxc6 {[%clk 0:00:18]} 35. Qxc6 {[%clk 0:00:10]}  Rxc6 {[%clk 0:00:19]} 36. Kb1 {[%clk 0:00:07]}  Nf5 {[%clk 0:00:18]} 37. Rg2 {[%clk 0:00:06]}  Rc7 {[%clk 0:00:16]} 38. Rc2 {[%clk 0:00:06]}  Rg7 {[%clk 0:00:16]} 39. Rc6 {[%clk 0:00:06]}  Rxg4 {[%clk 0:00:13]} 40. hxg4 {[%clk 0:00:06]}  Nxe3 {[%clk 0:00:13]} 41. Rxe6 {[%clk 0:00:06]}  h3 {[%clk 0:00:11]} 42. Re8+ {[%clk 0:00:06]}  Kc7 {[%clk 0:00:11]} 43. Rh8 {[%clk 0:00:07]}  Nxg4 {[%clk 0:00:10]} 44. Rxh3 {[%clk 0:00:07]}  Kd6 {[%clk 0:00:10]} 45. Rh7 {[%clk 0:00:05]}  Ne3 {[%clk 0:00:09]} 46. a4 {[%clk 0:00:04]}  Nc4 {[%clk 0:00:09]} 47. Ka2 {[%clk 0:00:04]}  Ncd2 {[%clk 0:00:08]} 48. b3 {[%clk 0:00:05]}  Nf3 {[%clk 0:00:08]} 49. Kb2 {[%clk 0:00:04]}  Nxd4 {[%clk 0:00:08]} 50. Rh8 {[%clk 0:00:04]}  Nd2 {[%clk 0:00:07]} 51. Rd8+ {[%clk 0:00:03]}  Kc7 {[%clk 0:00:06]} 52. Rf8 {[%clk 0:00:04]}  Ne4 {[%clk 0:00:06]} 53. Rf7+ {[%clk 0:00:02]}  Kd6 {[%clk 0:00:06]} 54. b4 {[%clk 0:00:02]}  axb4 {[%clk 0:00:05]} 55. Nxb4 {[%clk 0:00:03]}  Ne6 {[%clk 0:00:05]} 56. Rb7 {[%clk 0:00:03]}  Kc5 {[%clk 0:00:06]} 57. Na6+ {[%clk 0:00:03]}  Kc6 {[%clk 0:00:06]} 58. Rb8 {[%clk 0:00:04]}  Nxf4 {[%clk 0:00:06]} 59. Nb4+ {[%clk 0:00:04]}  Kc7 {[%clk 0:00:05]} 60. Rf8 {[%clk 0:00:04]}  d4 {[%clk 0:00:04]} 61. Kb3 {[%clk 0:00:04]}  Ne6 {[%clk 0:00:04]} 62. Rf7+ {[%clk 0:00:04]}  Kd6 {[%clk 0:00:04]} 63. Nd3 {[%clk 0:00:04]}  Kc6 {[%clk 0:00:03]} 64. Kc4 {[%clk 0:00:05]}  Nd6+ {[%clk 0:00:03]} 65. Kb4 {[%clk 0:00:03]}  Nxf7 {[%clk 0:00:04]} 0-1


[Site "https://www.chess.com"]

[Event "Titled Tuesday Blitz November 2 2021"]
[White "Yeletsky, Ivan"]
[Black "Papasimakopoulos, Alexandros"]
[WhiteFideId "24180327"]
[BlackFideId "4244125"]
[WhiteElo "2352"]
[BlackElo "2352"]
[Result "1-0"]
[Round "10"]
[TimeControl "180+1"]
[Date "2021.11.02"]
[WhiteClock "0:00:57"]
[BlackClock "0:00:46"]

1. d4 {[%clk 0:02:59]}  f5 {[%clk 0:02:55]} 2. Bf4 {[%clk 0:02:57]}  d6 {[%clk 0:02:55]} 3. e3 {[%clk 0:02:56]}  Nf6 {[%clk 0:02:56]} 4. Nc3 {[%clk 0:02:56]}  g6 {[%clk 0:02:56]} 5. h4 {[%clk 0:02:54]}  h6 {[%clk 0:02:54]} 6. Qf3 {[%clk 0:02:54]}  Bg7 {[%clk 0:02:47]} 7. Bc4 {[%clk 0:02:50]}  e6 {[%clk 0:02:46]} 8. Nge2 {[%clk 0:02:44]}  O-O {[%clk 0:02:36]} 9. O-O-O {[%clk 0:02:32]}  d5 {[%clk 0:02:31]} 10. Bd3 {[%clk 0:02:27]}  c6 {[%clk 0:02:31]} 11. Qg3 {[%clk 0:02:25]}  Nbd7 {[%clk 0:02:23]} 12. Qxg6 {[%clk 0:02:24]}  Qe8 {[%clk 0:02:24]} 13. Qxe8 {[%clk 0:02:19]}  Rxe8 {[%clk 0:02:25]} 14. h5 {[%clk 0:02:08]}  e5 {[%clk 0:02:24]} 15. dxe5 {[%clk 0:02:08]}  Nxe5 {[%clk 0:02:24]} 16. f3 {[%clk 0:02:03]}  Bd7 {[%clk 0:02:19]} 17. Nd4 {[%clk 0:02:03]}  Nxd3+ {[%clk 0:02:19]} 18. cxd3 {[%clk 0:02:03]}  a6 {[%clk 0:02:12]} 19. Na4 {[%clk 0:02:02]}  Re7 {[%clk 0:02:08]} 20. Nb6 {[%clk 0:01:56]}  Rae8 {[%clk 0:02:07]} 21. Nb3 {[%clk 0:01:56]}  Be6 {[%clk 0:01:58]} 22. Nc5 {[%clk 0:01:54]}  Nd7 {[%clk 0:01:49]} 23. Nbxd7 {[%clk 0:01:40]}  Bxd7 {[%clk 0:01:48]} 24. Nxb7 {[%clk 0:01:41]}  d4 {[%clk 0:01:45]} 25. e4 {[%clk 0:01:29]}  Be6 {[%clk 0:01:41]} 26. Nd6 {[%clk 0:01:27]}  Rd8 {[%clk 0:01:26]} 27. Nxf5 {[%clk 0:01:26]}  Bxf5 {[%clk 0:01:25]} 28. exf5 {[%clk 0:01:27]}  Re2 {[%clk 0:01:18]} 29. Rd2 {[%clk 0:01:27]}  Re7 {[%clk 0:01:18]} 30. g4 {[%clk 0:01:26]}  Rd5 {[%clk 0:01:14]} 31. Rhh2 {[%clk 0:01:23]}  Re1+ {[%clk 0:01:11]} 32. Rd1 {[%clk 0:01:21]}  Re7 {[%clk 0:01:09]} 33. Kd2 {[%clk 0:01:21]}  Rb5 {[%clk 0:01:02]} 34. b3 {[%clk 0:01:21]}  Ra5 {[%clk 0:01:01]} 35. Ra1 {[%clk 0:01:18]}  Rb7 {[%clk 0:01:00]} 36. Re2 {[%clk 0:01:08]}  Rxb3 {[%clk 0:00:55]} 37. axb3 {[%clk 0:01:09]}  Rxa1 {[%clk 0:00:55]} 38. Re6 {[%clk 0:01:09]}  Ra2+ {[%clk 0:00:55]} 39. Kd1 {[%clk 0:01:09]}  Ra1+ {[%clk 0:00:55]} 40. Ke2 {[%clk 0:01:07]}  Ra2+ {[%clk 0:00:55]} 41. Kf1 {[%clk 0:01:07]}  Rc2 {[%clk 0:00:54]} 42. Bxh6 {[%clk 0:01:04]}  Bxh6 {[%clk 0:00:54]} 43. Rxh6 {[%clk 0:01:04]}  Rc3 {[%clk 0:00:51]} 44. Ke2 {[%clk 0:01:02]}  Rc2+ {[%clk 0:00:51]} 45. Kd1 {[%clk 0:01:02]}  Rc3 {[%clk 0:00:52]} 46. Kd2 {[%clk 0:01:02]}  a5 {[%clk 0:00:52]} 47. Rg6+ {[%clk 0:01:00]}  Kh7 {[%clk 0:00:51]} 48. g5 {[%clk 0:01:00]}  Rxb3 {[%clk 0:00:50]} 49. Rh6+ {[%clk 0:01:00]}  Kg7 {[%clk 0:00:49]} 50. Rxc6 {[%clk 0:01:00]}  Rb2+ {[%clk 0:00:49]} 51. Rc2 {[%clk 0:01:00]}  Rb5 {[%clk 0:00:48]} 52. h6+ {[%clk 0:00:57]}  Kf8 {[%clk 0:00:47]} 53. Rc8+ {[%clk 0:00:56]}  Ke7 {[%clk 0:00:46]} 54. h7 {[%clk 0:00:57]} 1-0


[Site "https://www.chess.com"]